bitfinex/quotes_SOLUSD_20251206
["timestamp","ask_amount","ask_price","bid_price","bid_amount"]
[1765036007109,0.69,133.13,133.11,15.79248649]
[1765036007505,0.79,133.14,133.11,21.44037876]
[1765036008000,0.79,133.14,133.11,20.93037876]
[1765036008201,0.79,133.14,133.11,15.79248649]
[1765036010421,0.79,133.14,133.11,16.30248649]
[1765036010709,0.79,133.14,133.11,21.44037876]
[1765036012730,0.79,133.14,133.11,16.30248649]
[1765036014328,0.79,133.14,133.11,21.44037876]
[1765036015126,0.1,133.14,133.13,7.51145496]
[1765036015322,0.1,133.14,133.13,15.79145496]
[1765036016796,0.79,133.14,133.13,15.79145496]
[1765036018419,0.79,133.14,133.13,8.28]
[1765036020917,0.79,133.14,133.13,8.26]
[1765036021344,0.79,133.14,133.1,7.51312667]
[1765036021345,5.92789227,133.14,133.1,7.51312667]
[1765036021627,5.92789227,133.14,133.11,8.26]
[1765036021628,5.13789227,133.13,133.11,8.26]
[1765036021801,5.13789227,133.12,133.08,7.51377693]
[1765036022007,5.13789227,133.11,133.09,8.26]
[1765036022207,5.82789227,133.11,133.09,8.26]
[1765036022407,0.69,133.1,133.09,8.26]
[1765036022707,0.69,133.1,133.06,23.92571135]
[1765036023032,0.69,133.1,133.07,8.26]
[1765036023616,0.69,133.1,133.07,15.77479851]
[1765036024017,5.82789227,133.1,133.07,15.77479851]
[1765036024218,0.69,133.1,133.07,15.77479851]
[1765036024429,0.69,133.09,133.07,15.77479851]
[1765036024924,0.69,133.12,133.08,5.64789227]
[1765036025131,0.69,133.12,133.09,13.41789227]
[1765036025346,0.69,133.12,133.09,13.92789227]
[1765036026018,0.69,133.12,133.09,21.44111861]
[1765036027029,0.69,133.12,133.09,15.79322634]
[1765036027237,0.69,133.12,133.09,20.93111861]
[1765036027432,0.69,133.12,133.09,15.79322634]
[1765036027636,0.69,133.12,133.09,21.44111861]
[1765036027831,0.79,133.14,133.1,5.64789227]
[1765036028013,0.69,133.13,133.11,8.28]
[1765036028610,0.69,133.13,133.12,8.28]
[1765036030122,0.1,133.14,133.12,15.79201923]
[1765036030337,0.81,133.14,133.12,15.79201923]
[1765036035326,0.81,133.14,133.12,8.28]
[1765036036228,0.81,133.14,133.11,7.51257775]
[1765036036427,0.81,133.14,133.13,8.26]
[1765036037631,5.94789227,133.14,133.13,8.26]
[1765036038429,0.81,133.14,133.13,8.26]
[1765036038849,5.94789227,133.14,133.13,8.26]
[1765036039233,0.81,133.14,133.13,8.26]
[1765036039664,0.1,133.14,133.13,8.26]
[1765036039834,0.81,133.14,133.13,8.26]
[1765036043254,0.81,133.14,133.1,12.65087738]
[1765036043431,0.81,133.14,133.11,8.26]
[1765036043631,5.94789227,133.14,133.11,8.26]
[1765036044129,0.71,133.13,133.11,8.26]
[1765036044959,5.13789227,133.12,133.06,23.92505086]
[1765036045145,5.13789227,133.11,133.07,8.26]
[1765036045353,5.13789227,133.11,133.07,15.77471556]
[1765036045549,0.71,133.1,133.07,15.77471556]
[1765036047170,5.84789227,133.1,133.07,15.77471556]
[1765036047470,0.71,133.1,133.06,12.65324186]
[1765036047760,5.84789227,133.09,133.07,8.26]
[1765036047974,0.71,133.08,133.07,8.26]
[1765036051044,5.84789227,133.08,133.07,8.26]
[1765036051654,22.1721826,133.08,133.07,8.28]
[1765036052463,22.1721826,133.08,133.03,7.5171014]
[1765036052660,5.13789227,133.06,133.04,8.28]
[1765036053139,0.71,133.05,133.04,8.28]
[1765036053556,5.13789227,133.06,133.04,8.28]
[1765036053767,0.71,133.05,133.04,8.28]
[1765036053950,0.71,133.05,133.04,15.79653638]
[1765036056868,3.29087614,133.07,133.04,15.79653638]
[1765036057045,0.71,133.05,133.04,15.79653638]
[1765036058066,0.71,133.05,133.04,8.28]
[1765036059363,0.71,133.05,133.03,7.51704657]
[1765036059564,0.71,133.05,133.04,8.28]
[1765036060064,0.69,133.06,133.04,15.79653638]
[1765036064483,3.98087614,133.06,133.04,15.79653638]
[1765036064986,0.67,133.05,133.04,15.79653638]
[1765036067703,0.67,133.05,133.04,8.28]
[1765036069304,0.67,133.05,133.03,7.51706492]
[1765036069473,0.67,133.05,133.04,8.28]
[1765036070995,0.67,133.06,133.04,15.79653638]
[1765036078085,12.10082106,133.05,133.0,3.80087614]
[1765036078288,12.10082106,133.05,133.01,16.30768029]
[1765036078289,3.29087614,133.05,133.01,16.30768029]
[1765036078616,0.72,133.05,133.01,38.3941357]
[1765036078780,0.72,133.05,133.02,0.51]
[1765036079211,3.29087614,133.06,133.02,3.80087614]
[1765036079389,0.72,133.05,133.02,3.80087614]
[1765036079898,0.72,133.05,133.01,37.8841357]
[1765036080102,0.72,133.05,133.02,0.51]
[1765036080493,0.72,133.05,133.03,7.5171014]
[1765036080726,0.72,133.05,133.04,8.28]
[1765036082813,3.29087614,133.06,133.04,8.28]
[1765036083015,4.01087614,133.06,133.04,8.28]
[1765036083916,0.72,133.05,133.04,8.28]
[1765036086919,4.01087614,133.05,133.02,7.51753611]
[1765036087214,0.72,133.05,133.04,8.28]
[1765036087417,12.10082106,133.07,133.04,8.28]
[1765036087625,0.72,133.05,133.04,8.28]
[1765036087794,103.72,133.08,133.04,16.30637168]
[1765036088004,103.72,133.08,133.05,3.80087614]
[1765036088200,103.72,133.08,133.05,0.51]
[1765036089003,0.72,133.08,133.05,8.02561772]
[1765036089796,0.72,133.08,133.05,11.31649386]
[1765036091223,0.72,133.08,133.05,10.80649386]
[1765036092112,3.29087614,133.1,133.05,10.80649386]
[1765036092295,111.80994492,133.11,133.06,3.80087614]
[1765036092500,0.71,133.1,133.07,11.57087614]
[1765036094320,0.71,133.1,133.07,19.08571294]
[1765036096019,0.71,133.1,133.07,15.7948368]
[1765036096818,0.71,133.1,133.07,16.3048368]
[1765036097322,0.71,133.1,133.07,15.7948368]
[1765036104619,0.71,133.1,133.07,16.3048368]
[1765036104828,0.71,133.1,133.08,8.28]
[1765036105032,107.00087614,133.11,133.08,15.79414412]
[1765036105213,103.71,133.11,133.08,16.30414412]
[1765036105541,0.71,133.12,133.09,0.51]
[1765036105834,0.71,133.12,133.08,19.59502026]
[1765036106127,0.71,133.11,133.08,16.30414412]
[1765036108551,4.00087614,133.12,133.08,16.30414412]
[1765036108715,3.29087614,133.12,133.08,16.30414412]
[1765036108915,0.71,133.11,133.08,16.30414412]
[1765036109115,0.71,133.11,133.08,15.79414412]
[1765036110719,4.00087614,133.11,133.08,15.79414412]
[1765036110914,4.00087614,133.11,133.09,8.26]
[1765036111111,0.71,133.1,133.09,8.26]
[1765036116531,5.84884291,133.1,133.07,23.83614635]
[1765036116735,5.84884291,133.1,133.08,8.26]
[1765036116959,0.71,133.09,133.08,8.26]
[1765036117464,5.84884291,133.09,133.08,8.26]
[1765036118320,5.84884291,133.09,133.06,7.51530493]
[1765036118519,5.84884291,133.08,133.05,7.51588147]
[1765036118823,5.84884291,133.08,133.06,8.26]
[1765036119038,5.84884291,133.08,133.04,7.51639407]
[1765036119039,5.79884291,133.07,133.04,7.51639407]
[1765036119353,5.79884291,133.07,133.05,8.26]
[1765036119559,0.66,133.06,133.05,8.26]
[1765036119760,5.79884291,133.06,133.05,8.26]
[1765036126069,103.0,133.09,133.05,16.28597143]
[1765036126239,5.79884291,133.08,133.05,15.77597143]
[1765036126641,0.66,133.07,133.05,15.77597143]
[1765036127469,0.66,133.08,133.05,16.28597143]
[1765036127844,0.66,133.08,133.05,37.20078577]
[1765036130573,5.79884291,133.08,133.05,37.20078577]
[1765036132150,108.13884291,133.09,133.05,37.20078577]
[1765036132358,108.85884291,133.09,133.05,37.20078577]
[1765036133478,0.72,133.08,133.05,37.20078577]
[1765036134166,108.85884291,133.09,133.05,37.20078577]
[1765036134345,108.13884291,133.09,133.05,37.20078577]
[1765036134544,0.72,133.08,133.05,36.69078577]
[1765036134747,0.72,133.08,133.05,37.20078577]
[1765036141176,0.72,133.08,133.05,36.69078577]
[1765036141379,0.72,133.08,133.05,37.20078577]
[1765036142784,0.72,133.08,133.05,42.33962868]
[1765036145384,0.72,133.08,133.05,37.20078577]
[1765036151192,0.72,133.08,133.05,42.33962868]
[1765036154786,103.0,133.09,133.05,41.82962868]
[1765036155081,7.5127256,133.11,133.07,5.13884291]
[1765036155082,0.69,133.11,133.07,5.13884291]
[1765036155287,0.69,133.11,133.08,8.26]
[1765036155464,0.69,133.11,133.08,8.77]
[1765036156265,0.69,133.11,133.08,38.84264942]
[1765036159293,103.69,133.12,133.09,0.51]
[1765036159484,103.69,133.12,133.1,8.26]
[1765036159485,0.69,133.11,133.1,8.26]
[1765036175796,103.69,133.12,133.1,15.77306055]
[1765036176205,0.69,133.11,133.1,15.77306055]
[1765036176601,0.69,133.11,133.1,34.55901765]
[1765036180697,103.0,133.12,133.1,34.55901765]
[1765036180901,103.68,133.12,133.1,34.55901765]
[1765036181313,0.68,133.11,133.1,34.55901765]
[1765036181923,103.0,133.12,133.1,34.55901765]
[1765036182215,103.68,133.12,133.1,34.55901765]
[1765036185019,103.0,133.12,133.1,35.06901765]
[1765036185830,103.68,133.12,133.1,34.55901765]
[1765036185997,0.68,133.11,133.1,34.55901765]
[1765036187527,103.0,133.12,133.1,34.55901765]
[1765036187728,103.68,133.12,133.1,34.55901765]
[1765036188026,0.68,133.11,133.1,34.55901765]
[1765036189836,0.68,133.11,133.1,27.0459571]
[1765036190008,0.68,133.11,133.1,8.26]
[1765036200450,3.96785559,133.11,133.08,22.55893521]
[1765036200735,3.28785559,133.1,133.09,8.26]
[1765036200908,3.95785559,133.1,133.09,8.26]
[1765036201939,0.67,133.1,133.09,8.26]
[1765036207218,20.28108965,133.1,133.06,12.05785559]
[1765036207454,20.28108965,133.1,133.07,8.26]
[1765036207455,3.28785559,133.08,133.07,8.26]
[1765036207916,3.95785559,133.08,133.07,8.26]
[1765036208914,0.71,133.1,133.07,8.26]
[1765036209234,0.71,133.09,133.07,8.26]
[1765036209549,0.71,133.09,133.07,16.52]
[1765036209756,0.71,133.09,133.07,24.03481502]
[1765036209926,3.28785559,133.08,133.07,8.26]
[1765036210432,3.99785559,133.08,133.07,8.26]
[1765036215140,3.99785559,133.08,133.04,30.59199104]
[1765036215346,0.71,133.07,133.05,8.26]
[1765036215647,0.71,133.07,133.06,8.26]
[1765036216549,0.71,133.07,133.05,7.51374625]
[1765036216853,0.71,133.07,133.06,8.26]
[1765036218770,0.71,133.07,133.05,7.51374625]
[1765036218771,3.99785559,133.07,133.05,7.51374625]
[1765036218962,3.28785559,133.06,133.02,7.51721485]
[1765036219141,3.99785559,133.06,133.03,8.26]
[1765036219348,0.71,133.05,133.03,8.26]
[1765036219877,0.71,133.05,133.03,30.80789897]
[1765036224376,3.99785559,133.07,133.03,16.28693787]
[1765036224676,3.99785559,133.07,133.04,7.51438557]
[1765036224884,0.71,133.06,133.04,7.51438557]
[1765036226973,0.71,133.06,133.04,15.03085043]
[1765036227689,0.71,133.06,133.05,8.26]
[1765036233160,0.71,133.08,133.05,15.77596335]
[1765036233479,0.71,133.08,133.05,23.80024102]
[1765036234190,0.71,133.08,133.05,16.28596335]
[1765036237096,0.71,133.08,133.05,15.77596335]
[1765036239896,5.85050249,133.08,133.05,15.77596335]
[1765036240274,0.69,133.07,133.05,15.77596335]
[1765036241115,0.69,133.07,133.05,7.51596335]
[1765036241401,0.69,133.07,133.06,8.26]
[1765036249710,5.83050249,133.08,133.06,8.26]
[1765036250308,0.69,133.07,133.06,8.26]
[1765036255020,0.72,133.08,133.06,15.77540658]
[1765036258418,5.86050249,133.08,133.06,15.77540658]
[1765036258820,0.72,133.07,133.06,15.77540658]
[1765036259321,5.14050249,133.08,133.06,15.77540658]
[1765036259515,5.86050249,133.08,133.06,15.77540658]
[1765036260122,0.72,133.08,133.06,15.77540658]
[1765036260320,103.0,133.09,133.06,16.28540658]
[1765036260524,0.72,133.08,133.06,15.77540658]
[1765036261300,5.86050249,133.08,133.06,15.77540658]
[1765036261799,0.72,133.07,133.06,15.77540658]
[1765036266026,0.72,133.11,133.06,40.21442552]
[1765036266216,5.86050249,133.13,133.08,5.14050249]
[1765036266523,5.86050249,133.13,133.09,8.26]
[1765036266727,0.72,133.12,133.09,8.26]
[1765036267020,0.72,133.12,133.09,15.97046342]
[1765036267930,0.72,133.12,133.09,23.48364344]
[1765036268635,8.23205821,133.12,133.09,7.71046342]
[1765036268808,5.14050249,133.11,133.1,8.26]
[1765036269119,0.66,133.11,133.1,8.26]
[1765036276535,5.80050249,133.11,133.1,8.26]
[1765036278450,5.80050249,133.11,133.07,7.51468048]
[1765036278621,0.66,133.1,133.08,8.26]
[1765036280049,0.66,133.1,133.08,15.77423974]
[1765036281744,0.66,133.1,133.08,7.51423974]
[1765036281949,0.66,133.1,133.09,8.26]
[1765036283023,0.66,133.1,133.08,7.51423974]
[1765036283224,0.66,133.1,133.09,8.26]
[1765036287435,0.66,133.1,133.07,7.51484181]
[1765036287745,0.66,133.1,133.06,7.51529735]
[1765036287746,5.14050249,133.08,133.06,7.51529735]
[1765036287947,5.14050249,133.08,133.07,8.26]
[1765036288549,0.66,133.08,133.07,8.26]
[1765036289846,5.80050249,133.08,133.07,8.26]
[1765036290150,0.66,133.08,133.07,8.26]
[1765036290850,5.80050249,133.08,133.07,8.26]
[1765036291054,5.80050249,133.08,133.01,5.14050249]
[1765036291236,5.14050249,133.05,133.02,15.77752882]
[1765036291431,5.14050249,133.05,133.02,8.26]
[1765036291756,0.66,133.04,133.02,8.26]
[1765036292139,5.80050249,133.05,133.02,8.77]
[1765036293228,0.66,133.04,133.02,8.26]
[1765036294863,0.66,133.04,133.03,8.26]
[1765036298264,0.66,133.04,133.01,0.51]
[1765036298559,0.66,133.04,133.02,8.26]
[1765036304257,0.72,133.07,133.03,3.80186338]
[1765036304773,0.72,133.07,133.03,0.51]
[1765036305077,11.52566959,133.09,133.04,0.51]
[1765036305288,8.23380621,133.09,133.05,8.26]
[1765036305466,0.72,133.08,133.05,8.26]
[1765036305773,0.72,133.08,133.05,8.77]
[1765036306140,4.01186338,133.1,133.06,3.80186338]
[1765036306345,4.01186338,133.1,133.06,0.51]
[1765036306551,4.01186338,133.09,133.05,15.77587111]
[1765036306747,4.01186338,133.09,133.05,16.28587111]
[1765036306958,0.72,133.09,133.05,16.28587111]
[1765036307169,4.01186338,133.09,133.05,16.28587111]
[1765036307551,0.72,133.08,133.05,16.28587111]
[1765036309053,0.72,133.08,133.05,15.77587111]
[1765036309474,0.72,133.08,133.05,16.28587111]
[1765036309658,0.72,133.08,133.05,19.57773449]
[1765036310380,0.72,133.08,133.04,7.51653533]
[1765036310381,4.01186338,133.08,133.04,7.51653533]
[1765036310585,4.01186338,133.08,133.05,8.26]
[1765036310758,0.72,133.07,133.05,8.26]
[1765036313771,3.29186338,133.06,133.01,22.59733927]
[1765036314078,3.29186338,133.06,133.02,8.26]
[1765036314263,0.72,133.05,133.02,8.26]
[1765036314449,0.72,133.05,133.02,8.77]
[1765036314647,0.72,133.05,133.02,16.28757514]
[1765036314848,0.72,133.05,133.02,15.77757514]
[1765036319097,0.72,133.05,133.02,7.51757514]
[1765036319257,0.72,133.05,133.03,8.26]
[1765036319964,0.72,133.05,133.03,15.77693663]
[1765036320493,0.72,133.08,133.04,3.80186338]
[1765036321077,0.72,133.08,133.05,0.51]
[1765036321380,0.72,133.08,133.06,8.26]
[1765036331269,0.72,133.08,133.06,15.77533108]
[1765036331468,106.29186338,133.1,133.06,15.77533108]
[1765036331687,0.68,133.09,133.06,16.28533108]
[1765036332194,0.68,133.09,133.06,15.77533108]
[1765036333078,106.29186338,133.1,133.06,15.77533108]
[1765036333290,103.68,133.1,133.07,0.51]
[1765036335006,103.68,133.1,133.07,8.02467269]
[1765036336501,0.68,133.09,133.07,7.51467269]
[1765036342220,3.97186338,133.09,133.05,7.51542873]
[1765036342402,3.97186338,133.09,133.06,8.26]
[1765036342599,0.68,133.08,133.06,8.26]
[1765036343622,0.68,133.08,133.06,15.77539654]
[1765036347225,3.97186338,133.09,133.06,16.28539654]
[1765036348759,3.29186338,133.09,133.06,15.77539654]
[1765036348899,0.68,133.08,133.06,15.77539654]
[1765036350296,3.97186338,133.08,133.06,8.26]
[1765036350624,3.97186338,133.08,133.07,8.26]
[1765036350813,3.29186338,133.08,133.07,8.26]
[1765036351389,3.97186338,133.08,133.07,8.26]
[1765036351591,3.97186338,133.08,133.04,7.51651475]
[1765036351794,103.0,133.1,133.04,7.51651475]
[1765036351795,3.97186338,133.07,133.05,8.26]
[1765036352210,0.68,133.06,133.05,8.26]
[1765036365239,5.85179991,133.07,133.05,8.26]
[1765036366519,0.71,133.06,133.05,8.26]
[1765036366714,5.14179991,133.07,133.05,8.26]
[1765036366933,5.85179991,133.07,133.05,8.26]
[1765036367120,0.71,133.06,133.05,8.26]
[1765036368442,5.85179991,133.06,133.02,28.96437643]
[1765036368610,5.85179991,133.06,133.02,7.51756237]
[1765036368611,5.14179991,133.05,133.02,7.51756237]
[1765036368810,5.85179991,133.05,133.03,8.26]
[1765036369025,0.71,133.04,133.03,8.26]
[1765036370431,0.71,133.04,133.03,15.7771014]
[1765036377244,0.71,133.07,133.03,16.2871014]
[1765036377417,5.14179991,133.07,133.03,16.2871014]
[1765036377623,0.71,133.06,133.03,15.7771014]
[1765036378023,0.71,133.06,133.03,7.5171014]
[1765036378224,0.71,133.06,133.04,8.26]
[1765036380344,108.85179991,133.08,133.04,15.77635174]
[1765036380642,103.71,133.08,133.04,20.91815165]
[1765036380944,103.71,133.08,133.04,21.42815165]
[1765036380945,0.71,133.07,133.04,21.42815165]
[1765036381545,5.85179991,133.07,133.05,8.26]
[1765036381755,5.14179991,133.06,133.03,7.51699683]
[1765036381923,5.85179991,133.06,133.04,8.26]
[1765036382125,0.71,133.05,133.04,8.26]
[1765036389471,0.7,133.07,133.04,16.28653638]
[1765036389762,0.7,133.07,133.04,21.42833629]
[1765036391967,0.7,133.07,133.04,16.28653638]
[1765036397658,0.7,133.07,133.04,21.42833629]
[1765036397847,5.14179991,133.09,133.05,0.51]
[1765036398049,5.14179991,133.1,133.06,8.26]
[1765036398235,5.14179991,133.1,133.06,8.77]
[1765036398236,0.7,133.09,133.06,8.77]
[1765036398860,0.7,133.09,133.06,8.26]
[1765036399158,0.7,133.09,133.06,15.77515962]
[1765036399362,5.84179991,133.09,133.06,15.77515962]
[1765036399560,0.7,133.09,133.06,15.77515962]
[1765036399741,0.7,133.08,133.06,15.77515962]
[1765036400142,0.7,133.08,133.03,16.308864]
[1765036400143,5.14179991,133.07,133.03,16.308864]
[1765036400338,5.84179991,133.08,133.04,8.77]
[1765036400557,5.84179991,133.08,133.04,16.28272634]
[1765036400756,0.7,133.07,133.05,7.51556875]
[1765036402244,0.7,133.07,133.06,8.26]
[1765036404371,0.7,133.07,133.05,7.51556875]
[1765036404571,0.7,133.07,133.06,8.26]
[1765036411897,5.14179991,133.09,133.06,15.77540658]
[1765036412205,5.14179991,133.1,133.06,16.28540658]
[1765036412529,5.84179991,133.1,133.06,16.28540658]
[1765036412720,0.7,133.09,133.06,16.28540658]
[1765036413723,0.7,133.09,133.06,15.77540658]
[1765036414093,0.7,133.09,133.06,16.28540658]
[1765036414713,5.84179991,133.09,133.06,15.77540658]
[1765036414915,5.14179991,133.08,133.07,8.26]
[1765036415093,5.84179991,133.08,133.07,8.26]
[1765036416526,5.84179991,133.08,133.05,7.5158255]
[1765036416726,0.7,133.07,133.06,8.26]
[1765036417227,5.84179991,133.07,133.06,8.26]
[1765036418140,0.7,133.07,133.06,8.26]
[1765036433254,0.7,133.07,133.05,7.5158255]
[1765036433460,0.7,133.07,133.06,8.26]
[1765036433658,3.29042909,133.09,133.06,8.26]
[1765036433956,3.95042909,133.09,133.06,15.77533488]
[1765036434153,0.66,133.08,133.06,15.77533488]
[1765036440459,3.95042909,133.09,133.06,16.28533488]
[1765036440643,126.82132578,133.12,133.07,3.80042909]
[1765036440644,0.66,133.1,133.07,3.80042909]
[1765036440845,0.66,133.1,133.08,8.26]
[1765036441643,0.66,133.1,133.09,7.51371252]
[1765036443166,0.66,133.1,133.08,24.03413225]
[1765036443367,0.66,133.1,133.09,8.26]
[1765036443760,3.95042909,133.1,133.09,8.26]
[1765036447072,0.66,133.12,133.09,8.77]
[1765036447277,0.66,133.12,133.09,8.26]
[1765036447278,3.95042909,133.12,133.09,8.26]
[1765036447450,0.66,133.11,133.09,8.26]
[1765036448761,0.66,133.11,133.09,15.77364461]
[1765036460689,0.66,133.11,133.09,8.26]
[1765036472922,3.95042909,133.11,133.09,8.26]
[1765036473423,3.99042909,133.11,133.09,8.26]
[1765036473623,0.7,133.1,133.09,8.26]
[1765036474922,3.99042909,133.1,133.09,8.26]
[1765036477523,3.99042909,133.1,133.06,15.77524446]
[1765036477524,11.50381318,133.1,133.06,15.77524446]
[1765036477739,3.29042909,133.08,133.07,8.26]
[1765036478227,3.99042909,133.08,133.07,8.26]
[1765036480316,0.7,133.08,133.07,8.26]
[1765036480627,5.84062614,133.08,133.07,8.26]
[1765036484258,0.7,133.08,133.07,8.26]
[1765036484437,5.14062614,133.09,133.07,8.26]
[1765036484751,5.79062614,133.09,133.07,8.26]
[1765036485554,0.65,133.08,133.07,8.26]
[1765036486138,0.65,133.1,133.07,16.28433626]
[1765036486858,0.65,133.1,133.07,35.07323803]
[1765036492555,108.14062614,133.11,133.07,34.56323803]
[1765036492755,108.79062614,133.11,133.08,8.02421275]
[1765036492949,108.79062614,133.11,133.09,8.26]
[1765036493267,0.65,133.1,133.09,8.26]
[1765036497970,108.79062614,133.11,133.09,8.26]
[1765036498169,0.65,133.1,133.09,8.26]
[1765036501168,5.81062614,133.11,133.09,15.77368636]
[1765036501542,0.67,133.1,133.09,8.26]
[1765036501745,5.81062614,133.1,133.09,8.26]
[1765036502160,5.81062614,133.1,133.05,7.5116142]
[1765036502361,5.14062614,133.08,133.06,8.26]
[1765036502771,0.67,133.07,133.06,8.26]
[1765036503074,5.81062614,133.07,133.06,8.26]
[1765036516396,5.81062614,133.07,133.02,22.56742016]
[1765036516571,5.14062614,133.04,133.03,8.26]
[1765036517067,5.82062614,133.04,133.03,8.26]
[1765036530477,103.0,133.03,132.99,17.30922797]
[1765036530693,5.14062614,133.02,133.0,8.26]
[1765036530889,5.82062614,133.02,133.0,8.26]
[1765036531201,103.0,133.03,133.0,8.26]
[1765036531202,5.82062614,133.01,133.0,8.26]
[1765036531511,0.68,133.01,133.0,8.26]
[1765036533186,103.0,133.03,133.0,21.42921085]
[1765036533505,103.0,133.03,133.01,5.65062614]
[1765036533704,103.0,133.03,133.01,0.51]
[1765036534204,13.33616437,133.06,133.02,0.51]
[1765036534406,13.33616437,133.06,133.03,8.26]
[1765036534588,0.68,133.05,133.03,8.26]
[1765036538609,5.82062614,133.06,133.03,8.77]
[1765036538921,5.82062614,133.06,133.03,16.28672784]
[1765036539619,5.85062614,133.06,133.03,15.77672784]
[1765036539919,5.85062614,133.06,133.03,16.28672784]
[1765036542511,4.00136856,133.06,133.03,16.28672784]
[1765036543807,0.71,133.05,133.03,15.77672784]
[1765036545618,4.00136856,133.06,133.03,16.28672784]
[1765036545914,4.00136856,133.06,133.03,36.28672784]
[1765036546217,103.0,133.07,133.04,0.51]
[1765036546529,4.00136856,133.06,133.03,36.28672784]
[1765036547204,0.71,133.05,133.03,35.77672784]
[1765036550910,4.00136856,133.06,133.03,36.28672784]
[1765036551226,0.71,133.06,133.03,36.28672784]
[1765036551633,107.00136856,133.07,133.04,0.51]
[1765036552430,106.29136856,133.07,133.04,0.51]
[1765036552635,0.71,133.08,133.05,7.51597143]
[1765036552943,0.71,133.08,133.06,8.26]
[1765036552944,3.29136856,133.07,133.06,8.26]
[1765036553326,4.00136856,133.07,133.06,8.26]
[1765036554226,3.29136856,133.08,133.06,15.77540658]
[1765036554640,4.00136856,133.08,133.06,15.77540658]
[1765036556148,3.99136856,133.08,133.06,8.26]
[1765036557435,3.29136856,133.08,133.06,8.26]
[1765036557831,0.7,133.07,133.06,8.26]
[1765036558853,3.99136856,133.07,133.06,8.26]
[1765036562461,11.50633414,133.07,133.03,20.0]
[1765036562624,3.29136856,133.04,133.03,20.0]
[1765036562830,3.29136856,133.04,133.03,28.26]
[1765036563047,3.99136856,133.04,133.03,28.26]
[1765036563763,3.29136856,133.05,133.03,28.77]
[1765036564540,3.99136856,133.06,133.03,36.2871014]
[1765036564852,3.99136856,133.06,133.03,35.7771014]
[1765036565465,3.29136856,133.05,133.03,35.7771014]
[1765036565632,3.99136856,133.05,133.03,28.26]
[1765036565831,0.7,133.04,133.03,28.26]
[1765036567270,3.29136856,133.06,133.03,36.28709464]
[1765036567474,3.99136856,133.07,133.04,0.51]
[1765036567872,3.29136856,133.07,133.04,0.51]
[1765036568678,3.99136856,133.07,133.04,0.51]
[1765036569177,3.99136856,133.07,133.04,8.02613602]
[1765036569487,0.7,133.06,133.05,8.26]
[1765036569786,3.99136856,133.07,133.05,8.26]
[1765036573666,0.7,133.06,133.05,8.26]
[1765036574384,3.99136856,133.06,133.05,8.26]
[1765036574582,3.99136856,133.06,133.04,7.51613602]
[1765036574890,3.99136856,133.06,133.05,8.26]
[1765036575398,3.29136856,133.06,133.05,8.26]
[1765036575689,3.99136856,133.06,133.05,8.26]
[1765036576989,0.7,133.06,133.05,8.26]
[1765036583377,3.99136856,133.06,133.05,8.26]
[1765036583577,11.5069469,133.06,133.03,20.0]
[1765036583895,7.51557834,133.06,133.05,8.26]
[1765036584900,11.5069469,133.06,133.05,8.26]
[1765036599122,11.5069469,133.06,133.03,20.0]
[1765036599295,0.72,133.05,133.04,8.26]
[1765036599589,4.01136856,133.05,133.04,8.26]
[1765036599795,0.72,133.05,133.04,8.26]
[1765036599996,4.01136856,133.05,133.04,8.26]
[1765036600198,0.72,133.05,133.04,8.26]